bitfinex/quotes_ETHUSD_20250511
["timestamp","ask_amount","ask_price","bid_price","bid_amount"]
[1746978519326,13.553,2474.2,2473.1,0.8169]
[1746978519525,0.7762,2474.1,2473.1,0.8169]
[1746978520119,0.55,2474.1,2473.1,0.8169]
[1746978520748,10.6,2474.1,2473.1,0.8169]
[1746978520929,0.55,2473.0,2470.1,16.36]
[1746978521132,0.55,2473.0,2470.5,2.777]
[1746978521133,0.7762,2472.4,2470.5,2.777]
[1746978521364,8.0,2472.2,2470.6,2.802]
[1746978521569,8.0,2472.2,2470.2,8.43116952]
[1746978521770,0.7762,2471.6,2470.2,8.22055785]
[1746978522065,8.0,2471.5,2470.2,8.22055785]
[1746978522220,8.0,2471.5,2470.3,2.777]
[1746978522423,12.04661702,2471.2,2470.2,8.22055785]
[1746978522621,8.0,2471.2,2470.2,8.22055785]
[1746978523460,8.8261,2471.2,2470.2,8.22055785]
[1746978523645,8.0,2471.2,2470.3,0.04047819]
[1746978523845,8.8,2471.2,2470.6,0.8129]
[1746978524161,14.22271702,2471.2,2470.2,8.22055785]
[1746978524690,8.55,2471.1,2470.2,8.22055785]
[1746978524875,0.8261,2470.3,2470.2,8.22055785]
[1746978525193,19.25419132,2470.3,2470.2,8.22055785]
[1746978525323,20.9402222,2470.3,2470.2,8.22055785]
[1746978525523,16.89213088,2470.3,2470.2,8.22055785]
[1746978525724,20.4072222,2470.3,2470.2,8.22055785]
[1746978525933,20.9572222,2470.3,2470.2,8.22055785]
[1746978526175,19.7472222,2470.3,2470.2,8.22055785]
[1746978526375,4.0491981,2469.7,2468.6,2.00128399]
[1746978526525,4.04956669,2469.4,2468.6,0.8129]
[1746978526725,1.3761,2469.5,2468.6,0.8129]
[1746978526726,2.972,2469.3,2468.6,0.8129]
[1746978526964,8.0,2469.2,2468.6,0.8129]
[1746978527220,4.05137138,2468.3,2468.2,8.51497934]
[1746978527459,10.976,2468.3,2468.2,8.51497934]
[1746978527674,3.94508019,2468.3,2468.2,8.51497934]
[1746978527869,14.554,2469.1,2468.2,8.51497934]
[1746978527870,0.8261,2468.9,2468.2,8.51497934]
[1746978528225,8.0,2468.7,2468.2,8.51497934]
[1746978528956,14.554,2469.1,2468.2,8.51497934]
[1746978528957,3.831,2469.5,2468.3,0.7775]
[1746978529162,8.0,2469.4,2468.3,0.7775]
[1746978529365,8.0,2469.4,2468.2,8.51497934]
[1746978529563,8.55,2469.2,2468.2,8.51497934]
[1746978529777,8.55,2469.0,2468.2,8.51497934]
[1746978529973,8.0,2469.0,2468.2,8.51497934]
[1746978530187,3.023,2469.1,2468.2,8.51497934]
[1746978530472,3.833,2469.1,2468.2,8.51497934]
[1746978530624,4.05137138,2468.3,2468.2,8.51497934]
[1746978530826,19.57037138,2468.3,2468.2,8.51497934]
[1746978531082,0.81,2468.3,2468.2,8.51497934]
[1746978531369,0.3833,2469.0,2468.2,8.51497934]
[1746978531551,3.147,2468.9,2468.2,8.51497934]
[1746978531726,0.55,2468.8,2468.2,8.51497934]
[1746978531927,0.81,2469.2,2468.2,8.51497934]
[1746978532128,0.30161345,2469.5,2468.4,0.7775]
[1746978532338,3.147,2469.6,2468.4,0.7775]
[1746978532539,0.6337,2469.5,2468.4,0.7775]
[1746978532833,3.147,2469.6,2468.4,0.7775]
[1746978532834,3.147,2469.6,2468.5,0.04051606]
[1746978533037,0.81,2471.2,2468.7,1.3275]
[1746978533239,4.2588428,2471.2,2469.0,0.7775]
[1746978533440,4.2588428,2471.2,2469.2,8.0]
[1746978533656,4.2588428,2471.2,2469.3,0.81108967]
[1746978533852,4.04683314,2471.1,2469.5,8.7706]
[1746978534058,4.2588428,2471.2,2469.5,8.7706]
[1746978534059,8.30548801,2471.2,2469.6,6.382]
[1746978534226,8.30548801,2471.2,2469.6,3.148]
[1746978534227,4.2588428,2471.2,2469.6,3.148]
[1746978534432,4.2588428,2471.2,2469.6,6.381]
[1746978534627,4.2588428,2471.2,2469.7,0.7706]
[1746978534888,6.381,2471.8,2469.9,0.7706]
[1746978535036,0.8193,2472.0,2470.1,0.7706]
[1746978535225,6.382,2472.3,2469.8,1.26516]
[1746978535226,0.3083115,2472.1,2470.4,0.7706]
[1746978535429,4.04540699,2472.0,2470.4,0.7706]
[1746978535630,3.14094915,2472.3,2470.4,0.7706]
[1746978535631,4.04560192,2471.9,2470.4,0.7706]
[1746978535939,0.40456019,2471.8,2470.5,0.87706]
[1746978536269,4.35076315,2472.1,2470.6,3.235]
[1746978536433,4.35076315,2472.1,2470.4,0.7706]
[1746978536434,4.04606617,2471.6,2470.4,0.7706]
[1746978536638,3.234,2472.0,2470.4,0.7706]
[1746978537366,3.231,2472.0,2470.4,0.7706]
[1746978537726,4.241,2471.9,2470.4,0.7706]
[1746978537927,0.7472,2471.8,2470.6,0.7706]
[1746978538133,3.231,2472.0,2470.8,0.7706]
[1746978538329,3.231,2472.0,2470.9,6.378]
[1746978539168,3.231,2472.0,2471.0,0.7706]
[1746978539526,8.0,2472.2,2471.0,0.7706]
[1746978539761,1.3693,2472.3,2471.0,0.7706]
[1746978539941,4.04671026,2471.2,2470.6,0.7706]
[1746978540162,4.04676674,2471.2,2470.6,0.7706]
[1746978540332,8.0,2471.2,2470.6,0.7706]
[1746978540759,8.0,2470.9,2467.9,6.15]
[1746978541090,12.04940271,2469.5,2469.4,1.84966304]
[1746978541230,6.389,2469.5,2468.6,0.7706]
[1746978541789,10.05,2470.2,2468.6,0.7706]
[1746978542081,10.05,2471.0,2469.0,0.55]
[1746978542262,0.20869311,2471.1,2469.5,0.55]
[1746978542481,0.20869311,2471.1,2469.8,0.7706]
[1746978542653,4.04706494,2471.0,2469.8,0.7706]
[1746978542855,0.30894308,2471.0,2469.8,0.7706]
[1746978543074,0.20869311,2471.1,2469.8,0.7706]
[1746978543271,0.30044897,2471.1,2469.9,0.7706]
[1746978543473,8.0,2471.7,2469.9,0.7706]
[1746978543669,4.04666648,2471.2,2469.9,0.7706]
[1746978543870,10.58908687,2471.6,2469.9,0.7706]
[1746978544105,4.04698867,2471.0,2469.9,0.7706]
[1746978544305,0.8161,2470.8,2469.9,0.7706]
[1746978544486,4.86347296,2470.8,2469.9,0.7706]
[1746978544801,0.8161,2471.5,2469.9,0.7706]
[1746978544966,4.04688278,2471.1,2469.9,0.7706]
[1746978545497,3.27,2471.2,2469.9,0.81108295]
[1746978545700,3.27,2471.2,2469.9,0.7706]
[1746978546009,4.04729034,2470.8,2469.9,0.7706]
[1746978546172,0.40472903,2470.7,2469.9,0.7706]
[1746978546369,4.04696487,2471.0,2469.9,0.7706]
[1746978546558,4.04703977,2471.0,2469.9,0.7706]
[1746978546760,8.0,2471.1,2469.9,0.7706]
[1746978547291,3.27,2471.2,2469.9,0.7706]
[1746978547292,14.57,2471.0,2469.9,0.7706]
[1746978547599,3.27,2471.4,2469.9,0.7706]
[1746978547773,0.6573,2471.3,2470.0,0.40706]
[1746978548178,8.6573,2471.3,2469.9,0.7706]
[1746978548561,4.04743594,2470.7,2469.4,0.8027]
[1746978548896,8.0,2470.5,2469.4,0.8027]
[1746978549099,15.3613,2470.8,2469.4,0.8027]
[1746978549100,3.27,2470.7,2469.4,0.8027]
[1746978549297,3.88873088,2470.7,2469.3,0.8027]
[1746978549461,14.566,2470.8,2469.5,0.8027]
[1746978550059,14.566,2470.8,2469.6,0.04048665]
[1746978550302,14.566,2470.8,2469.7,0.8027]
[1746978550799,18.61329033,2470.8,2469.7,0.8027]
[1746978550998,14.566,2470.8,2469.7,0.8027]
[1746978551299,3.27,2471.0,2469.9,0.8027]
[1746978551505,4.04727213,2470.8,2469.9,0.8027]
[1746978551678,12.04759977,2470.6,2469.5,0.8027]
[1746978551879,0.7953,2470.7,2469.5,0.8027]
[1746978551880,8.0,2470.4,2469.5,0.8027]
[1746978552075,4.04884016,2469.9,2469.5,0.8027]
[1746978552274,4.45369501,2469.9,2469.5,0.8027]
[1746978552476,0.40488402,2469.9,2468.8,0.8027]
[1746978552673,0.40488402,2469.9,2468.8,0.70585556]
[1746978552872,4.84286111,2470.7,2468.9,0.04049966]
[1746978552873,0.31022302,2470.4,2468.9,0.04049966]
[1746978553104,7.31731625,2470.8,2469.1,8.0]
[1746978553398,8.0,2470.7,2469.2,3.332]
[1746978553700,7.61787641,2470.8,2469.2,3.332]
[1746978553701,7.61788878,2470.8,2469.2,3.332]
[1746978553907,7.61785841,2470.8,2469.2,3.332]
[1746978554066,7.61785841,2470.8,2469.3,9.17368851]
[1746978554267,7.61785841,2470.8,2469.2,3.332]
[1746978554268,4.04759977,2470.6,2468.8,3.353]
[1746978554484,4.04832219,2470.2,2468.8,3.353]
[1746978554677,3.27,2470.2,2468.9,0.0404975]
[1746978554914,3.27,2470.2,2468.8,3.353]
[1746978555117,0.327,2470.1,2468.9,8.3353]
[1746978555621,15.317524,2470.7,2469.0,0.55]
[1746978555914,11.27,2470.7,2469.1,0.8004]
[1746978556142,15.31745088,2470.7,2469.3,0.8004]
[1746978556313,4.04769362,2470.6,2469.3,0.8004]
[1746978556721,4.04795631,2470.4,2469.3,0.8004]
[1746978556914,0.40479563,2470.3,2469.3,0.8004]
[1746978557709,4.04759977,2470.6,2469.3,0.8004]
[1746978557918,4.04783874,2470.5,2469.3,0.8004]
[1746978558921,12.04745763,2470.7,2469.3,0.8004]
[1746978559118,4.04791296,2470.5,2469.3,0.8004]
[1746978559616,4.04791296,2470.5,2469.1,8.0]
[1746978559617,3.57054373,2470.8,2469.5,0.8004]
[1746978559914,3.57054373,2470.8,2469.1,8.0]
[1746978559915,8.0,2470.6,2469.2,0.8004]
[1746978560079,8.0,2470.6,2469.4,0.8004]
[1746978560281,12.04770481,2470.6,2469.1,0.55]
[1746978560518,4.04785039,2470.5,2469.2,0.8004]
[1746978560669,8.0,2470.6,2469.2,0.84088712]
[1746978560872,0.8,2470.5,2469.2,0.84088712]
[1746978561718,0.8,2470.5,2469.4,0.8004]
[1746978562220,0.8,2470.5,2469.6,0.8004]
[1746978563310,4.04838893,2470.2,2469.6,0.8004]
[1746978563668,4.04811396,2470.3,2469.6,0.8004]
[1746978563669,4.04815691,2470.3,2469.6,0.8004]
[1746978563869,4.04797851,2470.4,2469.6,0.8004]
[1746978563870,8.0,2470.4,2469.6,0.8004]
[1746978564108,4.04765292,2470.6,2469.6,0.8004]
[1746978564109,4.04838058,2470.2,2469.6,0.8004]
[1746978564275,4.04800996,2470.4,2469.6,0.8004]
[1746978564474,0.404801,2470.3,2469.6,0.8004]
[1746978564768,8.404801,2470.3,2469.6,0.8004]
[1746978565176,4.04850672,2470.1,2469.6,0.8004]
[1746978565396,0.404801,2470.3,2469.6,0.8004]
[1746978565606,4.45289737,2470.3,2469.6,0.8004]
[1746978565812,4.91951529,2470.2,2469.6,0.8004]
[1746978566113,0.87122988,2470.2,2469.6,0.8004]
[1746978566479,4.04704562,2471.0,2469.8,0.803]
[1746978566685,8.0,2470.8,2469.8,0.803]
[1746978567012,3.27,2471.1,2469.9,0.04048304]
[1746978567218,3.57624633,2471.1,2470.0,0.803]
[1746978567399,8.0,2471.0,2470.0,0.803]
[1746978567607,0.30624633,2471.1,2470.0,0.803]
[1746978567916,3.27,2471.7,2470.2,0.803]
[1746978568130,4.04633881,2471.4,2470.3,3.292]
[1746978568417,4.046512,2471.3,2470.4,0.7621]
[1746978569683,4.0470576,2471.0,2470.4,0.7621]
[1746978569990,0.40470576,2470.9,2470.4,0.7621]
[1746978570706,3.269,2471.0,2470.4,0.7621]
[1746978570884,8.0,2470.9,2470.4,0.7621]
[1746978571079,12.04719366,2470.9,2470.4,0.7621]
[1746978571308,4.04727845,2470.8,2470.4,0.7621]
[1746978571633,10.431,2470.9,2470.0,0.7621]
[1746978571793,12.04717269,2470.9,2470.0,0.7621]
[1746978572119,8.0,2470.9,2470.0,0.7621]
[1746978572619,4.04903856,2469.8,2469.6,0.7621]
[1746978572803,3.269,2469.9,2469.2,0.7621]
[1746978573005,3.282,2470.3,2469.2,0.7621]
[1746978573721,3.282,2470.3,2469.3,0.86279288]
[1746978573925,14.566,2470.5,2469.3,0.86279288]
[1746978574123,18.9160672,2470.5,2469.3,0.8223]
[1746978574420,0.30222313,2470.5,2469.5,0.8223]
[1746978574598,12.04741258,2470.8,2469.6,0.8223]
[1746978574798,8.0,2470.8,2469.6,0.8223]
[1746978575007,8.0,2470.8,2469.7,0.04048469]
[1746978575323,8.0,2470.8,2469.6,0.8223]
[1746978575324,4.04727213,2470.8,2469.8,0.8223]
[1746978575527,14.09716538,2470.9,2469.8,0.8223]
[1746978575828,10.05,2470.9,2469.8,0.8223]
[1746978576028,13.63513211,2470.9,2469.8,0.8223]
[1746978576524,4.04756745,2470.7,2469.8,0.8223]
[1746978576701,13.63513211,2470.9,2469.8,0.8223]
[1746978577487,8.0,2470.6,2469.8,0.8223]
[1746978577794,7.33030401,2470.8,2469.8,0.8223]
[1746978577997,4.04752935,2470.7,2469.8,0.8223]
[1746978578196,8.0,2470.8,2469.8,0.8223]
[1746978578500,8.0,2470.2,2469.5,0.8192]
[1746978578711,6.575,2470.1,2469.5,0.8192]
[1746978578887,4.04870276,2470.0,2469.5,0.8192]
[1746978579083,4.0487564,2469.9,2469.5,0.8192]
[1746978579324,4.04865667,2470.0,2469.5,0.8192]
[1746978580131,4.04900269,2469.8,2469.5,0.8192]
[1746978580433,0.80976594,2469.8,2469.5,0.8192]
[1746978580904,7.33035018,2470.2,2469.5,0.8192]
[1746978581288,3.282,2470.2,2469.5,0.8192]
[1746978581529,0.7585,2470.7,2469.5,0.8192]
[1746978581694,4.04778015,2470.5,2469.5,0.8192]
[1746978582095,4.04765253,2470.6,2469.5,0.8192]
[1746978582309,4.85732036,2470.5,2469.5,1.22902]
[1746978582503,4.85732036,2470.5,2469.6,0.8192]
[1746978582504,0.80951433,2470.5,2469.6,0.8192]
[1746978582710,4.0474877,2470.7,2469.6,0.85968796]
[1746978583322,14.56,2470.8,2469.6,0.8192]
[1746978583491,4.04743594,2470.7,2469.6,0.8192]
[1746978584235,4.04763551,2470.6,2469.6,0.8192]
[1746978584392,4.04752354,2470.7,2469.6,0.8192]
[1746978584592,4.0476266,2470.6,2469.6,0.8192]
[1746978584789,4.0473831,2470.8,2469.6,0.8172]
[1746978585235,5.714,2470.7,2469.6,0.8172]
[1746978585531,4.04793254,2470.4,2469.6,0.8172]
[1746978585896,4.04779521,2470.5,2469.6,0.8172]
[1746978586095,0.8095446,2470.4,2469.6,0.8172]
[1746978586634,7.33045252,2470.7,2469.6,0.8172]
[1746978587341,3.283,2470.7,2469.6,0.8172]
[1746978588017,3.283,2470.7,2469.8,0.8172]
[1746978588214,4.04751855,2470.7,2469.8,0.8172]
[1746978588397,4.04754945,2470.7,2469.8,0.8172]
[1746978588599,0.80948841,2470.6,2469.8,0.8172]
[1746978588822,4.04781619,2470.5,2469.8,0.8172]
[1746978589022,4.85715298,2470.6,2469.8,0.8172]
[1746978589330,4.0477758,2470.5,2469.8,0.8172]
[1746978589530,4.04776361,2470.5,2469.8,0.8172]
[1746978589714,0.46654247,2470.4,2469.8,0.8172]
[1746978590031,4.51455336,2470.4,2469.8,0.8172]
[1746978590591,4.51448875,2470.4,2469.8,0.8172]
[1746978591223,0.46654247,2470.4,2469.8,0.8172]
[1746978591604,4.04784513,2470.5,2469.8,0.8172]
[1746978591808,4.04801563,2470.4,2469.8,0.8172]
[1746978592008,2.431,2470.7,2469.8,0.8172]
[1746978592213,4.04751717,2470.7,2469.8,0.8172]
[1746978592415,4.0477114,2470.6,2469.8,0.8172]
[1746978592734,0.80952286,2470.5,2469.8,0.8172]
[1746978592937,11.283,2470.8,2469.8,0.8172]
[1746978593233,4.04770558,2470.6,2469.8,0.8172]
[1746978593436,0.30213211,2470.9,2469.8,0.8172]
[1746978593598,3.283,2471.5,2469.9,8.04048469]
[1746978593823,0.7657,2472.1,2470.2,0.8323]
[1746978594024,0.40487,2472.0,2470.4,8.0]
[1746978594218,0.40487,2472.0,2470.8,0.8323]
[1746978594445,0.40487,2472.0,2471.0,0.8323]
[1746978594619,0.40487,2472.0,2471.2,0.8323]
[1746978595336,4.04467454,2472.4,2471.2,0.8323]
[1746978595660,4.50934653,2472.5,2471.4,0.8323]
[1746978595856,4.50934653,2472.5,2471.6,0.8323]
[1746978596064,0.30582523,2472.5,2471.6,0.8323]
[1746978596256,3.283,2472.6,2471.6,0.8323]
[1746978596465,3.283,2472.6,2471.8,0.8323]
[1746978596668,6.01621479,2472.6,2471.8,0.8323]
[1746978596823,4.04483388,2472.3,2471.8,0.8323]
[1746978597225,11.58521479,2472.6,2471.8,0.7823]
[1746978597470,4.04523512,2472.1,2471.8,0.7823]
[1746978597665,4.44986657,2472.0,2471.8,0.7823]
[1746978597832,4.44986657,2472.0,2470.1,0.30761528]
[1746978597833,4.0457337,2471.8,2470.2,0.55]
[1746978598037,3.243,2471.7,2469.9,21.092]
[1746978598260,3.243,2471.7,2470.0,8.0]
[1746978598261,4.04597635,2471.6,2470.0,8.0]
[1746978598431,4.04596212,2471.6,2470.0,8.0]
[1746978598631,0.72889621,2471.5,2470.2,8.0]
[1746978598938,0.72889621,2471.5,2470.3,0.04047134]
[1746978599142,3.243,2471.7,2470.2,0.55]
[1746978599667,3.243,2471.7,2470.2,8.55]
[1746978599826,3.243,2471.7,2470.3,0.0404699]
[1746978600039,3.243,2471.7,2470.4,6.518]
[1746978600254,3.243,2471.7,2470.5,0.8323]
[1746978600533,7.32764885,2471.8,2470.7,0.8323]
[1746978600728,3.282,2471.8,2470.7,0.8323]
[1746978600928,7.32773726,2471.8,2470.7,0.8323]
[1746978601474,3.282,2471.8,2470.7,0.8323]
[1746978601626,3.282,2471.8,2470.9,0.8323]
[1746978601961,10.05,2471.9,2471.1,0.8323]
[1746978602164,14.09558613,2471.9,2471.1,0.8323]
[1746978602325,4.04607301,2471.6,2471.1,0.8323]
[1746978602526,4.04618617,2471.5,2471.1,0.8323]
[1746978602727,4.04573937,2471.8,2471.1,0.8323]
[1746978602970,10.05,2471.9,2471.1,0.8323]
[1746978603475,4.04590001,2471.7,2471.1,0.8323]
[1746978604284,4.04563492,2471.8,2471.1,0.8323]
[1746978604435,10.05,2471.9,2471.1,0.8323]
[1746978604832,4.04572104,2471.8,2471.1,0.8323]
[1746978605139,14.09547315,2471.9,2471.1,0.8323]
[1746978605638,10.05,2471.9,2471.2,0.04046349]
[1746978605827,13.27,2472.1,2471.2,0.812]
[1746978606230,13.27,2472.1,2471.3,0.04046006]
[1746978606435,13.27,2472.1,2471.4,0.812]
[1746978606436,10.05,2472.1,2471.4,0.812]
[1746978607043,14.09521782,2472.1,2471.4,0.812]
[1746978607237,13.00851703,2472.0,2471.4,0.812]
[1746978607462,4.04572292,2471.8,2471.4,0.812]
[1746978607667,4.04582861,2471.7,2471.4,0.812]
[1746978607866,4.04571293,2471.8,2471.4,0.812]
[1746978608380,10.05,2472.1,2471.4,0.812]
[1746978608689,8.52063182,2472.6,2471.4,0.812]
[1746978608690,10.05,2472.5,2471.6,0.7843]
[1746978608892,10.05,2472.6,2471.6,0.40267568]
[1746978609187,10.05,2472.6,2471.7,0.7843]
[1746978609342,10.05,2472.6,2471.8,0.04045025]
[1746978609683,10.05,2473.1,2472.0,0.7843]
[1746978609885,10.35967448,2473.4,2472.2,0.7843]
[1746978610064,14.40280416,2473.4,2472.4,0.7843]
[1746978610245,5.00851703,2473.2,2472.4,0.7843]
[1746978610470,4.04448938,2472.5,2471.3,20.993]
[1746978610642,4.04465097,2472.5,2471.4,0.7843]
[1746978611057,10.05,2472.7,2471.6,0.7843]
[1746978611385,10.05,2472.7,2471.8,0.7843]
[1746978611573,10.05,2472.9,2471.8,0.7843]
[1746978611779,10.05,2473.2,2472.0,0.7843]
[1746978611945,13.58367448,2473.4,2472.1,0.4453151]
[1746978612143,10.05,2473.4,2472.2,0.7843]
[1746978612343,10.05,2473.4,2472.3,0.7843]
[1746978613361,10.05,2473.4,2472.4,3.9758]
[1746978613581,10.05,2473.4,2472.5,0.7758]
[1746978613785,4.04301859,2473.4,2472.5,1.17338]
[1746978614106,8.20851703,2473.8,2472.6,0.81623637]
[1746978614107,5.00851703,2473.8,2472.6,0.81623637]
[1746978614309,4.04301802,2473.4,2472.6,0.7758]
[1746978614498,4.04346911,2473.2,2472.6,0.7758]
[1746978615318,4.04326458,2473.3,2472.6,0.7758]
[1746978615473,5.00851703,2473.5,2472.6,0.7758]
[1746978615811,4.04347018,2473.2,2472.6,0.7758]
[1746978615971,4.043526,2473.1,2472.6,0.7758]
[1746978616308,4.0434839,2473.2,2472.6,0.7758]
[1746978616886,0.30543384,2473.6,2472.6,0.7758]
[1746978617080,12.04262449,2473.7,2472.8,0.7758]
[1746978617320,8.0,2473.7,2472.8,0.7758]
[1746978617498,4.04267226,2473.7,2472.8,0.7758]
[1746978617869,3.223,2473.8,2472.8,0.7758]
[1746978618212,4.04236397,2473.8,2472.8,0.7758]
[1746978618372,16.455,2473.9,2472.8,0.7758]
[1746978618567,4.04252892,2473.7,2472.8,0.7758]
[1746978618905,4.04287347,2473.5,2472.8,0.7758]
[1746978619085,4.04264274,2473.7,2472.8,0.7758]
[1746978619407,20.49730308,2473.9,2472.8,0.7758]
[1746978619781,4.04328151,2473.3,2472.8,0.7758]
[1746978620311,0.40432815,2473.3,2472.8,0.7758]
[1746978621230,4.0436081,2473.1,2472.8,0.7758]
[1746978621387,5.00851703,2473.2,2472.8,0.7758]
[1746978621590,4.04381705,2473.0,2472.8,0.7758]
[1746978622326,4.04351889,2473.1,2472.8,0.7758]
[1746978622526,4.04380909,2473.0,2472.8,0.7758]
[1746978623005,4.04383517,2472.9,2472.8,0.7758]
[1746978623205,4.04410215,2472.8,2472.4,0.7758]
[1746978623718,4.04391673,2472.9,2472.4,0.7758]
[1746978624321,4.04406654,2472.8,2472.4,0.7758]
[1746978624488,4.04385469,2472.9,2472.4,0.7758]
[1746978624489,5.00851703,2472.9,2472.4,0.7758]
[1746978624697,8.40438547,2472.8,2472.4,0.7758]
[1746978624895,4.04468095,2472.4,2471.8,0.824]
[1746978625130,4.04454045,2472.5,2471.8,0.824]
[1746978625500,7.26721905,2472.7,2471.8,0.824]
[1746978625501,4.0446572,2472.4,2471.8,0.824]
[1746978625683,4.04455114,2472.5,2471.8,1.2216]
[1746978626109,4.04506794,2472.2,2471.8,1.2216]
[1746978626433,4.04517209,2472.1,2471.8,0.824]
[1746978626586,4.04561726,2471.9,2471.1,0.824]
[1746978626931,3.223,2472.1,2471.1,0.824]
[1746978627386,4.04480309,2472.4,2471.3,0.824]
[1746978627587,3.223,2472.4,2471.3,0.824]
[1746978627787,14.09459649,2472.5,2471.3,0.824]
[1746978628288,10.05,2472.5,2471.3,0.824]
[1746978628513,4.04468119,2472.4,2471.3,0.824]
[1746978629029,4.04483568,2472.3,2471.3,0.824]
[1746978629433,4.91633377,2472.4,2471.3,0.824]
[1746978629727,14.40379636,2472.5,2471.3,0.824]
[1746978629728,10.35928459,2472.5,2471.4,0.04045624]
[1746978629930,10.35928459,2472.5,2471.5,0.7676]
[1746978630135,10.05,2472.5,2471.6,0.7676]
[1746978630695,4.04437997,2472.6,2471.6,0.7676]
[1746978630896,4.04456357,2472.5,2471.6,0.7676]
[1746978631095,4.04456357,2472.5,2471.7,0.87676]
[1746978631333,3.223,2472.7,2471.8,0.7676]
[1746978631557,4.04373422,2473.0,2471.8,0.7676]
[1746978631855,18.59659313,2473.1,2472.0,0.7676]
[1746978632156,14.553,2473.1,2472.2,0.7676]
[1746978632356,0.0982991,2473.0,2472.2,0.7676]
[1746978632861,0.0982991,2473.0,2472.2,1.96180452]
[1746978633358,4.14209714,2473.0,2472.2,1.96180452]
[1746978633554,0.0982991,2473.0,2472.2,1.96180452]
[1746978633758,0.0982991,2473.0,2472.3,0.83944527]
[1746978633967,0.0982991,2473.0,2472.5,0.799]
[1746978634148,17.22132431,2473.9,2472.4,8.0]
[1746978634149,13.179,2473.9,2472.7,0.799]
[1746978634473,0.09441644,2473.8,2472.7,8.0]
[1746978634765,0.09441644,2473.8,2472.8,0.799]
[1746978634971,4.04208301,2474.0,2472.8,0.799]
[1746978635119,0.09441644,2473.7,2472.8,0.799]
[1746978635459,0.09441644,2473.6,2473.0,0.799]
[1746978635649,4.04206505,2474.0,2473.0,0.799]
[1746978635845,0.09441644,2473.5,2473.0,0.799]
[1746978636045,4.04177692,2474.2,2473.0,0.799]
[1746978636248,0.09441644,2473.4,2473.2,0.799]
[1746978636560,4.04171045,2474.2,2473.2,0.799]
[1746978636749,3.128,2474.3,2473.3,0.04042486]
[1746978636946,0.09441644,2474.1,2473.4,0.799]
[1746978637250,0.09441644,2474.0,2473.6,0.799]
[1746978637458,4.04102856,2474.7,2473.6,0.799]
[1746978637842,4.13547358,2474.6,2473.6,0.799]
[1746978638443,4.13556859,2474.6,2473.6,0.799]
[1746978639463,4.04164444,2474.3,2473.6,0.799]
[1746978639665,4.04122044,2474.5,2473.6,0.799]
[1746978639851,0.10185235,2474.2,2473.6,0.799]
[1746978640053,8.13651703,2474.8,2473.6,0.799]
[1746978640256,0.10185235,2474.1,2473.8,0.799]
[1746978640479,3.128,2474.8,2473.8,0.799]
[1746978641183,0.10952196,2474.7,2473.8,0.299]
[1746978641696,4.04109313,2474.6,2473.8,0.299]
[1746978641903,4.15070856,2474.6,2473.8,0.299]
[1746978642384,0.10961543,2474.6,2473.8,0.299]
[1746978642586,0.10961543,2474.6,2473.9,0.04041784]
[1746978642752,6.223,2475.3,2473.9,0.04041784]
[1746978643081,4.04040772,2475.0,2473.8,1.541689]
[1746978643246,8.21227266,2475.2,2473.8,1.541689]
[1746978643451,9.04914797,2474.9,2473.8,1.541689]
[1746978643665,4.15123613,2474.8,2473.9,1.0509579]
[1746978644013,5.00851703,2474.6,2473.1,8.0]
[1746978644215,8.10051703,2474.6,2473.1,14.15]
[1746978644414,4.04139203,2474.4,2473.2,0.799]
[1746978644818,4.04149229,2474.4,2473.2,0.799]
[1746978645122,0.11040986,2474.3,2473.3,1.4949]
[1746978645327,0.11040986,2474.3,2473.4,0.799]
[1746978645627,4.04162409,2474.3,2473.4,0.799]
[1746978645824,0.10900786,2474.2,2473.4,0.799]
[1746978647528,0.10900786,2474.2,2473.5,0.04042495]
[1746978647747,0.10900786,2474.2,2473.5,0.83942495]
[1746978647884,12.17617347,2474.9,2473.5,0.83942495]
[1746978648082,0.5008517,2474.8,2473.7,0.799]
[1746978648277,0.59912108,2474.8,2473.9,0.7831]
[1746978648696,4.63995486,2474.8,2473.9,0.7831]
[1746978649079,0.59912108,2474.8,2473.9,0.7831]
[1746978649306,0.77517918,2474.7,2473.9,0.7831]
[1746978649522,0.8750989,2474.7,2473.9,0.7831]
[1746978650188,0.09991972,2474.7,2474.0,0.82351852]
[1746978650617,0.1009019,2474.6,2474.0,0.7831]
[1746978651122,0.1009019,2474.5,2474.0,0.7831]
[1746978651590,0.1009019,2474.4,2474.0,0.7831]
[1746978651785,3.127,2474.9,2474.1,0.0404135]
[1746978651991,0.1009019,2474.8,2474.2,0.7831]
[1746978655047,5.00851703,2475.2,2474.3,0.7731]
[1746978655336,0.08700405,2475.1,2474.3,0.7731]
[1746978655836,4.12734516,2475.1,2474.3,0.7731]
[1746978656197,4.04056205,2475.0,2474.3,0.7731]
[1746978656398,5.00851703,2474.9,2474.3,0.7731]
[1746978656799,0.08700405,2474.8,2474.3,0.7731]
[1746978657298,0.54958323,2474.8,2474.3,0.7731]
[1746978657793,0.08700405,2474.8,2474.3,0.7731]
[1746978658198,0.08700405,2474.7,2474.3,0.7731]
[1746978658410,7.07998097,2475.3,2474.3,0.7731]
[1746978658610,7.07998097,2475.3,2474.4,0.04041143]
[1746978658611,3.04,2475.3,2474.4,0.04041143]
[1746978658828,3.04,2475.3,2474.2,0.8231]
[1746978659066,0.08700405,2475.2,2474.2,0.8231]
[1746978659198,0.08700405,2475.2,2474.3,0.04040775]
[1746978659398,0.08700405,2475.2,2474.4,8.8231]
[1746978659618,3.126,2475.4,2474.5,0.04040775]
[1746978659817,3.126,2475.4,2474.6,0.8231]